bitfinex-derivatives/quotes_ETHF0:USTF0_20251024
["timestamp","ask_amount","ask_price","bid_price","bid_amount"]
[1761312664888,0.1267,3969.6,3969.1,0.45343]
[1761312665184,0.1267,3969.6,3969.0,0.45536132]
[1761312665376,0.1267,3969.6,3965.9,1.13448]
[1761312665377,5.0,3969.5,3965.9,1.13448]
[1761312665581,0.3284,3969.4,3965.9,1.1345]
[1761312665780,0.3284,3967.1,3966.7,0.4537]
[1761312665984,0.1267,3967.2,3967.1,0.45366]
[1761312666181,0.3284,3967.6,3967.5,0.45362]
[1761312666378,0.3284,3967.9,3967.1,9.186]
[1761312666583,0.3310154,3967.9,3967.4,0.45362]
[1761312666787,0.3310154,3967.9,3967.3,1.785]
[1761312667187,0.3310154,3967.9,3967.4,0.45362]
[1761312667485,0.3310154,3967.9,3967.3,9.64763]
[1761312667785,0.4551,3967.2,3967.1,0.00179267]
[1761312669491,0.3284,3967.2,3967.1,0.00179267]
[1761312669687,0.3284,3967.8,3967.7,0.45359]
[1761312669887,0.3284,3967.8,3967.6,0.4536]
[1761312670087,0.3284,3967.8,3967.6,9.0186]
[1761312670693,0.3284,3967.8,3967.6,9.198]
[1761312671292,0.3284,3967.8,3967.6,0.4536]
[1761312672990,0.0026154,3967.9,3967.8,0.45358]
[1761312673177,0.4551,3968.8,3968.7,0.45348]
[1761312673377,0.1267,3971.2,3969.5,0.45339]
[1761312673580,0.1267,3971.2,3970.0,0.45333]
[1761312673790,0.1267,3971.2,3970.2,0.4533]
[1761312673989,0.3284,3970.3,3970.2,0.4533]
[1761312674294,0.3284,3970.8,3970.5,0.45327]
[1761312674592,0.33084627,3970.8,3970.6,0.45326]
[1761312675190,0.33084627,3970.8,3970.4,0.45328]
[1761312675381,0.33084627,3970.8,3970.5,9.65527]
[1761312675585,0.33084627,3970.8,3970.6,0.45326]
[1761312676596,0.00244627,3970.8,3970.6,0.45326]
[1761312677093,0.33084627,3970.8,3970.7,9.201]
[1761312677787,0.00244627,3970.8,3970.7,9.201]
[1761312678995,0.3284,3970.7,3970.6,0.45326]
[1761312679297,0.3284,3970.7,3970.6,9.64626]
[1761312679994,0.00244627,3970.8,3970.6,9.64626]
[1761312680182,0.3284,3970.7,3970.6,0.45326]
[1761312680387,0.3284,3970.3,3970.2,0.00290186]
[1761312680587,0.3284,3970.3,3970.2,1.35690186]
[1761312681487,0.3284,3970.3,3970.2,9.19190186]
[1761312681695,0.3284,3970.3,3970.2,0.00290186]
[1761312682086,0.1351,3969.6,3969.5,0.259]
[1761312682288,0.3248,3970.0,3969.6,0.45338]
[1761312682482,0.3248,3970.0,3968.1,22.673]
[1761312682483,0.3248,3969.5,3969.1,0.45343]
[1761312682689,0.3248,3969.5,3969.1,4.145]
[1761312682891,0.3248,3969.5,3969.1,4.59843]
[1761312683087,0.3248,3969.5,3969.4,0.4534]
[1761312683691,0.3248,3969.5,3969.1,4.14726241]
[1761312683896,0.3248,3969.5,3969.3,0.4534]
[1761312685196,0.3248,3970.0,3969.9,0.45334]
[1761312685401,0.00244627,3970.8,3970.7,0.45325]
[1761312685595,0.00244627,3970.8,3970.7,9.64025]
[1761312685902,0.3248,3971.9,3971.4,0.45317]
[1761312686099,0.3248,3971.9,3970.7,9.187]
[1761312686303,0.3248,3971.9,3971.0,0.45321]
[1761312686595,0.1351,3972.8,3970.9,0.45322]
[1761312686596,0.3248,3971.1,3970.9,0.45322]
[1761312686803,0.3248,3971.1,3971.0,1.778]
[1761312687000,0.32692577,3971.1,3970.5,0.45327]
[1761312687210,0.32692577,3971.1,3969.0,1.13362]
[1761312687398,0.3248,3970.3,3968.7,1.1337]
[1761312687593,0.3248,3970.3,3969.7,0.45336]
[1761312687796,0.3248,3970.3,3969.2,1.753]
[1761312687996,0.3248,3969.5,3969.3,9.189]
[1761312688503,0.3248,3969.5,3969.1,0.00226241]
[1761312692612,5.3248,3969.5,3969.1,0.00226241]
[1761312692912,0.3248,3968.7,3967.5,1.13403]
[1761312693211,0.3248,3968.7,3968.0,0.45355]
[1761312693411,0.3248,3968.7,3968.3,0.45352]
[1761312693610,0.3248,3968.7,3968.1,0.45354]
[1761312694012,0.3248,3967.9,3966.9,0.2020421]
[1761312694315,0.3248,3967.1,3967.0,0.45367]
[1761312694509,0.1351,3967.2,3967.0,0.45367]
[1761312694913,0.3248,3967.7,3967.4,0.45362]
[1761312695110,0.3248,3967.7,3967.0,1.13419]
[1761312695311,0.3248,3967.7,3967.5,0.45361]
[1761312695506,0.3248,3967.7,3967.3,0.45363]
[1761312695713,0.3248,3967.7,3967.0,1.13419]
[1761312695911,0.00216633,3967.9,3967.8,0.45358]
[1761312696310,0.00216633,3967.9,3967.8,9.63058]
[1761312696816,0.32696633,3967.9,3967.1,1.13416]
[1761312697009,0.32696633,3967.9,3967.5,0.45361]
[1761312697210,0.32696633,3967.9,3967.6,0.4536]
[1761312697408,0.32696633,3967.9,3967.7,0.45359]
[1761312697616,0.00216633,3967.9,3967.7,0.45359]
[1761312698017,0.3248,3967.8,3967.6,0.45359]
[1761312698221,0.3248,3967.8,3967.7,9.176]
[1761312698513,0.3248,3967.8,3967.6,0.45359]
[1761312698715,0.00216633,3967.9,3967.8,0.45358]
[1761312698912,0.00216633,3967.9,3967.8,9.63358]
[1761312699309,0.32696633,3967.9,3967.8,9.63258]
[1761312699707,0.32696633,3967.9,3966.9,0.0029503]
[1761312699908,0.32696633,3967.9,3967.0,9.178]
[1761312700112,0.32696633,3967.9,3967.5,0.45362]
[1761312700419,0.32696633,3967.9,3967.7,0.45359]
[1761312700817,0.32696633,3967.9,3966.9,0.0029503]
[1761312701012,0.32696633,3967.9,3967.6,0.4536]
[1761312701219,0.32696633,3967.9,3967.7,0.45359]
[1761312702018,0.32696633,3967.9,3967.8,0.45358]
[1761312702620,0.32696633,3967.9,3967.6,0.4536]
[1761312702921,0.32696633,3967.9,3967.8,0.45358]
[1761312703118,0.00216633,3967.9,3967.8,9.62958]
[1761312703510,0.1351,3968.8,3968.3,0.45353]
[1761312703715,0.1351,3968.8,3968.7,0.45348]
[1761312704117,0.3248,3968.7,3968.3,0.45351]
[1761312704318,0.3248,3968.7,3968.3,9.179]
[1761312704620,0.3275,3968.7,3967.8,9.181]
[1761312704815,0.3275,3968.7,3966.9,0.0029503]
[1761312704816,0.3248,3967.9,3966.9,0.0029503]
[1761312705022,0.3248,3967.1,3967.0,0.002]
[1761312705417,0.3248,3967.7,3967.0,10.32419]
[1761312705922,0.3248,3967.7,3967.6,0.4536]
[1761312708625,0.3248,3967.7,3967.4,0.45362]
[1761312708832,0.3248,3967.7,3967.5,0.45361]
[1761312710222,0.4599,3967.6,3967.5,0.45361]
[1761312710727,0.3248,3967.5,3966.9,0.0029503]
[1761312710928,0.3248,3967.5,3964.9,1.13476]
[1761312711124,0.3248,3967.5,3965.3,5.179]
[1761312711325,0.1351,3966.2,3965.7,0.45382]
[1761312711521,0.3248,3966.1,3965.8,9.011]
[1761312711723,0.3248,3966.1,3965.7,0.45382]
[1761312712122,0.3248,3966.1,3965.8,0.45381]
[1761312712325,0.1351,3966.9,3965.8,1.13453]
[1761312712326,0.3491,3966.7,3965.8,1.13453]
[1761312712519,0.3491,3966.7,3966.5,0.45373]
[1761312712920,0.3491,3966.7,3965.7,0.00202577]
[1761312713327,0.3491,3966.7,3965.9,0.4538]
[1761312713530,0.3491,3966.7,3966.0,0.45378]
[1761312713923,0.3491,3966.7,3965.7,0.00202577]
[1761312714129,0.3491,3966.7,3966.1,0.45377]
[1761312714330,0.3491,3966.7,3966.3,0.45375]
[1761312714535,0.3491,3966.7,3966.2,0.45376]
[1761312715033,0.3491,3966.7,3966.4,0.45374]
[1761312715233,0.3491,3966.7,3966.5,0.45373]
[1761312716738,0.1351,3967.6,3967.5,0.45362]
[1761312717034,0.1351,3967.6,3966.2,2.26881]
[1761312717035,0.3343,3967.9,3967.8,0.45358]
[1761312717540,0.1351,3968.0,3967.8,0.45358]
[1761312717734,0.3343,3968.3,3968.1,0.45354]
[1761312718640,0.337,3968.7,3968.6,0.45349]
[1761312718833,0.337,3968.7,3968.6,0.45634629]
[1761312719236,0.337,3968.7,3968.6,0.00285629]
[1761312719444,0.337,3968.7,3968.6,9.19185629]
[1761312719843,0.3343,3970.3,3970.0,0.45332]
[1761312720147,0.3343,3970.3,3969.8,0.45335]
[1761312720442,0.3343,3969.5,3969.4,0.4534]
[1761312720640,0.3343,3969.5,3969.4,3.9084]
[1761312720840,0.33644223,3969.5,3969.4,3.9084]
[1761312721040,0.33644223,3969.5,3969.4,0.4534]
[1761312721239,0.33644223,3969.5,3969.4,9.4974]
[1761312721435,0.00214223,3969.5,3969.4,9.4974]
[1761312722545,0.33644223,3969.5,3968.6,0.00285629]
[1761312722846,0.4695,3968.8,3968.7,9.64847]
[1761312723145,0.3343,3969.4,3968.7,9.195]
[1761312723448,0.3343,3969.4,3969.2,0.45342]
[1761312724035,0.00214223,3969.5,3969.4,0.4534]
[1761312724340,0.3343,3970.9,3970.8,0.45323]
[1761312724645,0.3343,3970.9,3970.8,9.208]
[1761312725146,0.00215079,3970.9,3970.8,9.208]
[1761312725641,0.1352,3972.0,3970.9,1.13308]
[1761312725842,0.3343,3971.9,3970.8,9.208]
[1761312726146,0.3343,3971.9,3971.1,0.4532]
[1761312726346,0.3343,3971.9,3971.4,0.45316]
[1761312726640,0.33712412,3971.9,3971.4,0.00223808]
[1761312726857,0.33712412,3971.9,3971.5,0.45316]
[1761312727156,0.33712412,3971.9,3971.4,0.00223808]
[1761312727961,0.3343,3971.8,3971.4,0.00223808]
[1761312728550,5.0,3971.7,3969.0,1.13362]
[1761312728753,0.3343,3970.3,3969.2,1.13355]
[1761312729056,0.3343,3970.8,3970.7,0.45325]
[1761312729264,0.3343,3971.6,3970.7,10.34113]
[1761312729449,0.3343,3971.6,3971.4,0.45317]
[1761312729753,0.00282412,3971.9,3971.6,0.45315]
[1761312729955,0.3343,3971.8,3971.7,0.45313]
[1761312730158,0.3343,3971.8,3971.4,0.0029276]
[1761312730351,0.00282412,3971.9,3971.4,0.0029276]
[1761312730549,0.3343,3971.7,3971.4,0.0029276]
[1761312731051,0.3343,3971.7,3971.4,0.4560876]
[1761312731256,0.3343,3971.7,3971.4,0.0029276]
[1761312731661,0.3343,3971.7,3971.5,0.45316]
[1761312731856,0.3343,3971.7,3971.6,9.23]
[1761312732061,0.3343,3971.7,3971.4,0.0029276]
[1761312733259,0.3343,3971.7,3971.5,0.45316]
[1761312733459,0.3343,3971.7,3971.5,9.68516]
[1761312733856,0.3343,3971.7,3971.6,9.232]
[1761312734451,0.00282412,3971.9,3971.6,9.232]
[1761312734452,0.00282412,3971.9,3971.7,0.45314]
[1761312734655,0.3343,3972.7,3971.7,1.13286]
[1761312734853,0.3343,3972.7,3971.8,0.45313]
[1761312735053,0.1352,3972.0,3971.4,0.0029276]
[1761312735248,0.3343,3971.9,3971.4,0.0029276]
[1761312735461,0.3343,3971.9,3971.5,1.813]
[1761312735651,0.33622976,3971.9,3971.4,0.0029276]
[1761312736552,0.3343,3971.8,3971.4,0.0029276]
[1761312738364,0.3343,3971.8,3971.4,0.4560976]
[1761312738660,0.3343,3971.8,3971.6,0.45315]
[1761312739055,0.3343,3971.8,3971.4,0.0029276]
[1761312739463,0.3343,3971.8,3971.4,0.4560976]
[1761312739660,0.3343,3971.8,3971.6,0.45315]
[1761312740061,0.3343,3971.8,3971.4,0.0029276]
[1761312740859,0.3343,3971.8,3971.6,0.45314]
[1761312741061,0.3343,3971.8,3971.5,0.45316]
[1761312741256,0.3343,3971.8,3971.6,0.45315]
[1761312741465,0.00192976,3971.9,3971.8,0.45313]
[1761312741761,0.33622976,3971.9,3971.8,0.45313]
[1761312742567,0.00192976,3971.9,3971.8,9.69013]
[1761312743460,0.4622,3972.8,3972.7,0.45303]
[1761312743659,0.4622,3972.8,3972.7,9.68603]
[1761312744062,0.4622,3972.8,3972.7,0.45303]
[1761312744259,0.4622,3972.8,3972.7,9.232]
[1761312744460,0.464054,3972.8,3972.7,9.232]
[1761312744965,0.327,3972.7,3972.5,0.45305]
[1761312745168,0.327,3972.7,3971.7,1.13285]
[1761312745364,0.327,3972.7,3972.5,0.45305]
[1761312745564,0.327,3972.7,3971.2,1.13299]
[1761312745871,0.327,3972.7,3966.8,4.184]
[1761312745872,0.327,3971.7,3971.6,0.45315]
[1761312746167,0.327,3971.7,3971.6,5.32015]
[1761312746559,0.327,3971.7,3970.5,1.1332]
[1761312746769,0.327,3971.7,3971.4,9.6850976]
[1761312747175,0.327,3971.7,3971.4,9.2319276]
[1761312747467,0.327,3971.7,3971.4,9.6850976]
[1761312747658,0.327,3971.7,3971.4,9.2319276]
[1761312748063,0.327,3971.7,3971.4,0.0029276]
[1761312752570,0.327,3971.6,3971.4,0.0029276]
[1761312753368,0.327,3971.6,3970.5,0.45328]
[1761312753369,5.327,3971.6,3970.5,0.45328]
[1761312753569,0.327,3971.0,3970.0,0.45333]
[1761312753766,0.327,3970.3,3970.0,2.89134]
[1761312753962,0.327,3970.3,3969.8,0.6661]
[1761312754162,0.1328,3970.4,3968.6,0.45349]
[1761312754163,0.327,3970.1,3968.6,0.45349]
[1761312754369,0.327,3970.1,3969.1,0.45344]
[1761312754569,0.327,3970.1,3969.1,0.00228356]
[1761312754768,0.327,3969.6,3969.1,0.00228356]
[1761312754973,0.32992424,3969.6,3969.1,0.00228356]
[1761312755169,0.32992424,3969.6,3969.1,0.45571356]
[1761312755373,0.32992424,3969.6,3969.2,0.45343]
[1761312755573,0.00292424,3969.6,3969.5,0.3253]
[1761312755773,0.327,3969.5,3969.1,0.00228356]
[1761312756476,0.327,3969.5,3969.1,0.45572356]
[1761312756777,0.327,3969.5,3969.2,0.45343]
[1761312756980,0.327,3969.5,3969.3,0.45342]
[1761312757476,0.327,3969.5,3969.1,0.45571356]
[1761312757676,0.327,3969.5,3969.3,0.45342]
[1761312757978,0.327,3969.5,3969.1,0.00228356]
[1761312761284,0.327,3969.5,3969.1,0.45572356]
[1761312761582,0.327,3969.5,3969.1,0.00228356]
[1761312761978,0.327,3969.5,3969.1,0.45572356]
[1761312762180,0.327,3969.5,3969.1,0.00228356]
[1761312762684,0.327,3969.5,3969.3,0.45341]
[1761312763484,0.32992424,3969.6,3969.5,0.4534]
[1761312763684,0.32992424,3969.6,3969.4,0.45341]
[1761312764078,0.00292424,3969.6,3969.5,0.3253]
[1761312764577,0.00292424,3969.6,3969.5,9.5433]
[1761312765381,0.00292424,3969.6,3969.5,9.218]
[1761312765588,0.00292424,3969.6,3969.5,9.5433]
[1761312765781,0.00292424,3969.6,3969.5,0.3253]
[1761312765982,0.00292424,3969.6,3969.5,9.5433]
[1761312767289,0.32992424,3969.6,3969.1,0.00228356]
[1761312768084,0.32992424,3969.6,3969.1,0.45572356]
[1761312768283,0.32992424,3969.6,3969.4,0.4534]
[1761312768585,0.00292424,3969.6,3969.5,0.3253]
[1761312769089,0.00292424,3969.6,3969.5,0.77869]
[1761312769681,4.24e-06,3969.6,3969.5,0.77869]
[1761312769881,4.24e-06,3969.6,3969.5,7.4863]
[1761312770194,4.24e-06,3969.6,3969.5,7.93969]
[1761312770586,0.32700424,3969.6,3969.1,0.00228356]
[1761312770785,0.32700424,3969.6,3969.2,0.45342]
[1761312770994,0.32700424,3969.6,3969.2,0.45343]
[1761312771392,0.32700424,3969.6,3969.1,0.77028356]
[1761312771588,0.32700424,3969.6,3969.1,1.22372356]
[1761312771785,0.32700424,3969.6,3969.2,0.45343]
[1761312772293,0.32700424,3969.6,3969.3,0.45342]
[1761312773087,0.32700424,3969.6,3969.4,0.45341]
[1761312773488,0.32700424,3969.6,3969.5,0.45339]
[1761312774297,4.24e-06,3969.6,3969.5,0.78299]
[1761312774493,4.24e-06,3969.6,3969.5,0.45339]
[1761312777297,4.24e-06,3969.6,3969.5,0.80279]
[1761312777694,0.3297,3969.2,3969.1,0.00228356]
[1761312778495,0.3297,3969.1,3968.0,0.45356]
[1761312778699,0.3297,3969.1,3967.9,2.22]
[1761312778998,0.3297,3969.1,3968.4,0.45351]
[1761312779200,0.3297,3969.1,3968.2,0.45353]
[1761312779391,0.3297,3969.1,3968.2,0.45597654]
[1761312779697,0.3297,3969.1,3968.2,0.00244654]
[1761312779897,0.461,3968.3,3968.2,0.00244654]
[1761312781999,0.3297,3968.2,3966.8,0.45369]
[1761312782295,0.3297,3968.2,3966.4,1.13436]
[1761312782595,0.1313,3967.6,3966.5,0.3494]
[1761312782801,0.3297,3967.5,3966.1,0.80318]
[1761312783012,0.3297,3966.1,3965.1,0.80329]
[1761312783193,0.33293921,3966.1,3965.3,0.45386]
[1761312783387,0.33293921,3966.1,3965.1,0.00260935]
[1761312783694,0.33293921,3966.1,3965.5,0.45384]
[1761312783898,0.33293921,3966.1,3965.6,0.45383]
[1761312784097,0.33293921,3966.1,3965.8,0.8032]
[1761312784292,0.33293921,3966.1,3965.3,0.3494]
[1761312784600,0.33293921,3966.1,3965.2,0.45388]
[1761312784896,0.33293921,3966.1,3965.7,0.45382]
[1761312785097,0.33293921,3966.1,3965.9,0.4538]
[1761312785286,0.00323921,3966.1,3966.0,0.3494]
[1761312785692,0.3297,3967.4,3967.2,0.45365]
[1761312785895,0.3297,3967.4,3966.6,0.3494]
[1761312785896,0.3297,3967.4,3967.1,0.45366]
[1761312786295,0.3297,3967.4,3967.2,0.45365]
[1761312786495,0.3297,3967.4,3967.0,0.45367]
[1761312786695,0.33156848,3967.4,3967.1,0.45366]
[1761312786896,0.33156848,3967.4,3967.2,0.45365]
[1761312787293,0.33156848,3967.4,3966.9,0.3494]
[1761312787498,0.33156848,3967.4,3967.2,0.45365]
[1761312788201,0.00186848,3967.4,3967.3,0.3494]
[1761312789296,0.3297,3967.3,3967.0,0.45367]
[1761312789497,0.3297,3967.3,3965.8,1.13453]
[1761312789702,0.3297,3967.3,3966.4,0.45374]
[1761312789900,0.3297,3967.3,3966.3,10.02215]
[1761312790090,0.3297,3967.3,3966.4,0.3494]
[1761312790605,0.00186848,3967.4,3965.5,0.1166]
[1761312790606,0.3297,3966.8,3965.9,9.6718]
[1761312790804,0.3297,3966.8,3965.9,9.218]
[1761312791004,0.3297,3966.8,3966.0,0.3494]
[1761312791505,0.3297,3967.3,3966.9,0.45369]
[1761312791697,0.3297,3967.3,3966.9,0.80308]
[1761312792106,0.3297,3967.3,3966.4,9.22]
[1761312792107,0.3297,3967.3,3967.1,0.80306]
[1761312792403,0.3297,3967.3,3967.1,0.45366]
[1761312792605,0.3297,3967.3,3966.7,0.3494]
[1761312792809,0.3297,3967.3,3966.6,9.67472]
[1761312793002,0.3297,3967.3,3966.2,0.3494]
[1761312793200,0.3297,3967.3,3966.5,0.45373]
[1761312793399,0.3297,3967.3,3966.6,0.45372]
[1761312793601,0.3297,3967.2,3966.6,0.45372]
[1761312793797,0.45368,3967.0,3966.3,0.45376]
[1761312794106,0.3297,3966.8,3965.2,0.3494]
[1761312794302,0.3297,3966.8,3965.1,0.00260935]
[1761312794508,0.1313,3966.9,3965.1,0.00260935]
[1761312794509,0.3297,3965.4,3965.1,0.00260935]
[1761312794902,0.3297,3966.1,3965.2,0.3494]
[1761312795111,0.3297,3966.1,3965.4,0.45385]
[1761312795500,0.3297,3966.1,3965.3,0.45387]
[1761312795809,0.3297,3965.5,3965.1,0.00260935]
[1761312796409,0.3297,3965.5,3965.1,0.45649935]
[1761312796606,0.3297,3965.5,3965.1,0.00260935]
[1761312797016,0.3297,3965.5,3965.2,0.45388]
[1761312797210,0.3297,3965.5,3965.1,0.00260935]
[1761312798822,0.3297,3965.4,3965.1,0.00260935]
[1761312799018,5.3297,3965.4,3965.1,0.00260935]
[1761312799321,0.3297,3964.7,3964.4,0.45397]
[1761312799630,0.3297,3964.7,3964.5,0.45396]
[1761312799822,0.3297,3964.7,3964.3,0.45398]
[1761312800020,0.3297,3964.7,3963.4,0.1307]
[1761312800021,0.3297,3964.7,3963.4,0.45408]
[1761312800220,0.3297,3964.7,3963.4,0.00262676]
[1761312800431,0.3297,3964.7,3963.8,0.45404]
[1761312800632,0.3297,3964.7,3964.3,0.45398]
[1761312800832,0.3297,3964.7,3964.5,0.45396]
[1761312801231,0.3297,3965.5,3965.3,0.45387]
[1761312801528,0.3297,3966.8,3966.1,0.45377]
[1761312801825,0.3297,3966.8,3965.4,1.13462]
[1761312802032,0.3477,3966.3,3966.1,0.45377]
[1761312802224,0.479,3966.9,3966.2,0.35]
[1761312802420,0.479,3966.9,3966.2,0.0022411]
[1761312802617,0.3477,3966.9,3966.5,0.45373]
[1761312802832,0.3477,3966.9,3966.7,0.45371]
[1761312803022,0.1313,3968.0,3966.4,1.13435]
[1761312803023,0.1313,3968.0,3967.3,0.35]
[1761312803218,0.205,3969.4,3967.3,0.35]
[1761312803422,0.205,3969.4,3967.0,0.45367]
[1761312803423,0.1279,3968.0,3967.0,0.45367]
[1761312803627,0.34956848,3967.4,3966.2,0.0022411]
[1761312804422,0.34956848,3967.4,3966.8,0.4537]
[1761312804632,0.34956848,3967.4,3966.4,0.35]
[1761312804819,0.34956848,3967.4,3967.0,0.45367]
[1761312805019,0.34956848,3967.4,3966.5,0.45372]
[1761312805323,0.34956848,3967.4,3966.2,0.0022411]
[1761312805519,0.34956848,3967.4,3966.2,0.4560011]
[1761312805719,0.34956848,3967.4,3966.3,0.45375]
[1761312806330,0.3477,3967.1,3966.4,0.45374]
[1761312806523,0.3477,3967.1,3966.2,1.1366411]
[1761312806731,0.3477,3967.3,3967.2,0.45365]
[1761312807035,0.3477,3967.3,3967.0,0.45367]
[1761312807339,0.3477,3967.1,3966.7,0.45371]
[1761312807824,0.3477,3967.1,3966.2,0.4560111]
[1761312808025,0.3477,3967.1,3966.2,0.0022411]
[1761312808231,0.3477,3966.3,3966.2,0.0022411]
[1761312809530,0.3477,3966.8,3966.5,0.45373]
[1761312809834,0.3477,3966.8,3966.4,0.45374]
[1761312810134,0.3477,3966.8,3966.2,0.0022411]
[1761312810336,0.3477,3966.8,3966.5,0.45373]
[1761312810641,0.34956848,3967.4,3966.6,0.35]
[1761312810839,0.34956848,3967.4,3967.1,0.45365]
[1761312811034,0.34956848,3967.4,3967.2,0.45365]
[1761312811338,0.00186848,3967.4,3967.3,0.35]
[1761312811531,0.00186848,3967.4,3967.2,0.45365]
[1761312811732,0.34956848,3967.4,3966.8,0.45369]
[1761312812432,0.34956848,3967.4,3966.9,0.45368]
[1761312812632,0.34956848,3967.4,3967.0,0.80367]
[1761312813134,0.34956848,3967.4,3967.1,0.45366]
[1761312813329,0.34956848,3967.4,3967.0,0.35]
[1761312813529,0.34956848,3967.4,3966.9,0.45368]
[1761312813730,0.34956848,3967.4,3966.6,0.35]
[1761312813933,0.00186848,3967.4,3967.3,0.35]
[1761312815236,0.3477,3968.3,3967.9,0.45356]
[1761312815443,0.3477,3968.3,3968.0,0.35]
[1761312815744,0.3477,3969.4,3968.9,0.45345]
[1761312815944,0.3477,3970.3,3969.1,0.35]
[1761312816145,0.35049066,3970.3,3969.6,0.35]
[1761312816337,0.35049066,3970.3,3969.1,0.35180488]
[1761312816538,0.35049066,3970.3,3969.5,0.45339]
[1761312816947,0.35049066,3970.3,3969.7,0.45336]
[1761312817246,0.35049066,3970.3,3969.5,0.35]
[1761312817442,0.35049066,3970.3,3969.9,0.45334]
[1761312817940,0.35049066,3970.3,3969.9,0.35]
[1761312818145,0.35049066,3970.3,3969.8,0.45335]
[1761312818445,0.35049066,3970.3,3969.6,0.45337]
[1761312818648,0.35049066,3970.3,3969.2,0.45342]
[1761312819151,0.35049066,3970.3,3969.3,0.80341]
[1761312819445,0.35049066,3970.3,3969.4,0.4534]
[1761312819945,0.35049066,3970.3,3969.1,0.00180488]
[1761312820143,0.3477,3969.5,3969.1,0.00180488]
[1761312820546,0.3477,3969.3,3969.1,0.00180488]
[1761312821748,0.3477,3969.2,3969.1,0.00180488]
[1761312822250,0.3477,3969.2,3968.3,0.45352]
[1761312822751,0.3477,3969.2,3967.5,0.35]
[1761312823252,0.3477,3969.2,3968.1,0.45355]
[1761312823450,0.3477,3969.2,3968.2,0.45353]
[1761312823839,0.3477,3969.2,3968.4,0.45351]
[1761312824244,0.3477,3969.2,3968.5,0.4535]
[1761312824540,0.3477,3969.2,3968.0,0.35]
[1761312824541,0.3477,3969.2,3968.6,0.45349]
[1761312824945,0.3477,3969.2,3968.0,0.35]
[1761312825155,0.3477,3969.2,3968.0,0.45356]
[1761312825656,0.3477,3969.2,3968.3,0.45353]
[1761312825844,0.3477,3969.2,3967.6,0.35]
[1761312826242,0.3477,3969.2,3968.3,0.45352]
[1761312826845,3.2078,3968.6,3968.3,0.45352]
[1761312827152,3.2078,3968.6,3967.7,4.34179]
[1761312827153,0.3477,3968.5,3967.7,3.66139]
[1761312827354,0.3477,3968.5,3967.7,3.2078]
[1761312827946,0.3477,3968.1,3967.5,0.00208889]
[1761312828251,0.3477,3967.7,3967.5,0.00208889]
[1761312829753,3.2078,3967.8,3965.7,3.2078]
[1761312829754,0.3477,3967.5,3965.7,3.2078]
[1761312829954,0.1279,3968.0,3965.7,3.2078]
[1761312829955,0.3477,3966.6,3965.7,3.2078]
[1761312830254,0.3477,3966.2,3965.5,0.45384]
[1761312830449,0.3477,3966.2,3965.3,3.66166]
[1761312830653,0.34957502,3966.2,3965.3,3.66370862]
[1761312830854,0.34957502,3966.2,3965.6,0.45383]
[1761312831253,0.34957502,3966.2,3965.6,0.35]
[1761312831855,0.34957502,3966.2,3965.3,3.20984862]
[1761312832153,0.34957502,3966.2,3965.4,0.45386]
[1761312832354,0.34957502,3966.2,3965.6,0.45383]
[1761312832556,0.34957502,3966.2,3965.3,3.20984862]
[1761312832755,0.3351,3965.4,3965.3,0.00204862]
[1761312833348,3.5429,3965.9,3965.3,0.34164862]
[1761312834257,0.00187502,3966.2,3965.5,3.5474]
[1761312834448,3.2078,3965.9,3965.5,0.3396]
[1761312834650,0.3351,3965.8,3965.3,0.00204862]
[1761312835157,0.3351,3965.8,3965.4,0.45385]
[1761312835461,0.00187502,3966.2,3966.1,0.3396]
[1761312835656,0.33697502,3966.2,3965.8,0.3396]
[1761312835958,0.33697502,3966.2,3965.8,0.79341]
[1761312836343,0.00187502,3966.2,3965.8,0.3396]
[1761312836745,0.00187502,3966.2,3965.5,3.2078]
[1761312836746,0.00187502,3966.2,3966.1,0.322]
[1761312837151,22.691,3968.9,3966.1,0.322]
[1761312837152,0.3197,3967.5,3966.3,1.13437]
[1761312837361,0.3197,3967.5,3967.1,0.77566]
[1761312837555,0.3197,3967.5,3967.2,0.322]
[1761312837750,0.3197,3967.5,3967.3,0.322]
[1761312838150,0.32196328,3967.5,3967.3,0.45364]
[1761312838349,0.00226328,3967.5,3967.3,0.45364]
[1761312838554,0.00226328,3967.5,3967.4,0.322]
[1761312838751,0.00226328,3967.5,3967.4,3.5298]
[1761312840354,42.147246,3970.1,3967.4,3.5298]
[1761312840355,3.2078,3968.9,3967.6,1.13402]
[1761312840561,3.2078,3969.4,3968.8,0.322]
[1761312840754,3.2078,3969.4,3969.2,0.322]
[1761312841148,0.3197,3969.3,3968.6,0.322]
[1761312841351,0.3197,3968.7,3968.6,0.00187488]
[1761312842048,0.3197,3968.7,3967.3,3.2078]
[1761312842253,0.3197,3968.3,3968.1,0.45355]
[1761312842454,3.2078,3968.4,3968.2,0.322]
[1761312842659,3.2078,3968.4,3967.9,0.45357]
[1761312842846,0.3197,3968.3,3967.8,0.45358]
[1761312843047,0.3197,3968.3,3967.9,0.45357]
[1761312843357,0.3197,3968.3,3967.8,0.00320561]
[1761312843358,0.3197,3968.7,3968.1,0.322]
[1761312843554,0.3197,3968.7,3968.1,0.45354]
[1761312843757,0.3197,3968.7,3968.2,0.45354]
[1761312843955,0.3197,3969.2,3968.7,0.45348]
[1761312844155,3.2078,3969.0,3968.4,3.2078]
[1761312844455,0.3197,3968.7,3967.9,3.5298]
[1761312844657,0.3197,3968.7,3967.9,3.2078]
[1761312844863,0.3197,3968.7,3968.4,0.322]
[1761312845164,0.3197,3968.7,3968.5,0.4535]
[1761312845361,0.32217123,3969.3,3968.4,0.322]